[Event "Lueneburg Open-A 2019"]
[Site "Lueneburg"]
[Date "2019.08.04"]
[Round "2.24"]
[White "Raedisch, Peter"]
[Black "Rick, Uwe"]
[Result "0-1"]
[ECO "B14"]
[WhiteElo "1595"]
[BlackElo "2113"]
[Annotator "NA"]
[PlyCount "90"]
[EventDate "2019.08.03"]
[EventType "swiss"]
[EventCountry "GER"]
[SourceTitle "playchess.com"]
[Source "ChessBase"]
[SourceQuality "1"]
[TimeControl "40/5400+30:1800+30"]

1. e4 {[%emt 0:01:11]} d5 {[%emt 0:00:00]} 2. exd5 {[%emt 0:00:11]} Nf6 {[%emt 0:00:06]} 3. c4 {[%emt 0:01:40]} c6 {[%emt 0:00:07]} 4. Nc3 {[%emt 0:02:10]} cxd5 {[%emt 0:00:15]} 5. d4 {[%emt 0:01:05]} e6 {[%emt 0:01:04]} 6. c5 {[%emt 0:00:51]} b6 {[%emt 0:01:55]} 7. Bb5+ {[%emt 0:01:18]} Bd7 {[%emt 0:00:26]} 8. b4 {[%emt 0:01:46]} Ne4 {[%emt 0:03:31]} 9. Bxd7+ {[%emt 0:00:54]} Qxd7 {[%emt 0:00:35]} 10. Nxe4 {[%emt 0:00:48]} dxe4 {[%emt 0:00:12]} 11. Nh3 {[%emt 0:00:30]} Nc6 {[%emt 0:07:40]} 12. Be3 {[%emt 0:01:05]} Nxb4 {[%emt 0:00:58]} 13. O-O {[%emt 0:00:32]} bxc5 {[%emt 0:02:29]} 14. dxc5 {[%emt 0:02:32]} Qxd1 {[%emt 0:04:20]} 15. Rfxd1 {[%emt 0:00:11]} Be7 {[%emt 0:06:47]} 16. Nf4 {[%emt 0:01:51]} O-O {[%emt 0:01:45]} 17. a3 {[%emt 0:00:32]} Nc2 {[%emt 0:00:58]} 18. Rac1 {[%emt 0:02:08]} Nxe3 {[%emt 0:03:10]} 19. fxe3 {[%emt 1:18:15]} Rfd8 {[%emt 1:03:12]} 20. Rxd8+ {[%emt 0:00:00]} Rxd8 {[%emt 0:00:00]} 21. Kf2 {[%emt 0:00:00]} Rc8 {[%emt 0:00:00]} 22. c6 {[%emt 0:00:00]} Bxa3 {[%emt 0:00:00]} 23. Rc4 {[%emt 0:00:00]} g6 {[%emt 0:00:00]} 24. g3 {[%emt 0:00:00]} Kf8 {[%emt 0:00:00]} 25. Ne2 {[%emt 0:00:00]} Bb2 {[%emt 0:00:00]} 26. Rc2 {[%emt 0:00:00]} Be5 {[%emt 0:00:00]} 27. Rc4 {[%emt 0:00:00]} f6 {[%emt 0:00:00]} 28. Nc1 {[%emt 0:00:00]} f5 {[%emt 0:00:00]} 29. Nb3 {[%emt 0:00:00]} Ke7 {[%emt 0:00:00]} 30. Na5 {[%emt 0:00:00]} Bc7 {[%emt 0:00:00]} 31. Nb7 {[%emt 0:00:00]} Bb6 {[%emt 0:00:00]} 32. Ke2 {[%emt 0:00:00]} e5 {[%emt 0:00:00]} 33. Kd2 {[%emt 0:00:00]} Ke6 {[%emt 0:00:00]} 34. Rc2 {[%emt 0:00:00]} Kd5 {[%emt 0:00:00]} 35. Ra2 {[%emt 0:00:00]} Kxc6 {[%emt 0:00:00]} 36. Na5+ {[%emt 0:00:00]} Bxa5+ {[%emt 0:00:00]} 37. Rxa5 {[%emt 0:00:00]} Kb6 {[%emt 0:00:00]} 38. Rxe5 {[%emt 0:00:00]} a5 {[%emt 0:00:00]} 39. Re6+ {[%emt 0:00:00]} Rc6 {[%emt 0:00:00]} 40. Rxc6+ {[%emt 0:00:00]} Kxc6 {[%emt 0:00:00]} 41. Kc3 {[%emt 0:00:00]} Kc5 {[%emt 0:05:20]} 42. h4 {[%emt 0:00:00]} a4 {[%emt 0:00:32]} 43. Kb2 {[%emt 0:00:00]} Kb4 {[%emt 0:00:11]} 44. Ka2 {[%emt 0:00:00]} Kc3 {[%emt 0:00:16]} 45. Ka3 {[%emt 0:00:00]} Kd3 {[%emt 0:36:41]} 0-1

[Event "Lueneburg Open-A 2019"]
[Site "Lueneburg"]
[Date "2019.08.04"]
[Round "2.25"]
[White "Rempe, Janne"]
[Black "Klages, Hans Juergen"]
[Result "0-1"]
[ECO "A46"]
[WhiteElo "1594"]
[BlackElo "2095"]
[Annotator "NA"]
[PlyCount "70"]
[EventDate "2019.08.03"]
[EventType "swiss"]
[EventCountry "GER"]
[SourceTitle "playchess.com"]
[Source "ChessBase"]
[SourceQuality "1"]
[TimeControl "40/5400+30:1800+30"]

1. d4 {[%emt 0:00:00]} c5 {[%emt 1:30:30]} 2. Nf3 {[%emt 0:00:27]} cxd4 {[%emt 0:00:00]} 3. Nxd4 {[%emt 0:01:02]} Nf6 {[%emt 0:00:00]} 4. Nc3 {[%emt 0:03:17]} d5 {[%emt 0:00:00]} 5. Bf4 {[%emt 0:02:47]} e6 {[%emt 0:00:00]} 6. e3 {[%emt 0:01:32]} Bb4 {[%emt 0:00:00]} 7. Qd3 {[%emt 0:07:36]} O-O {[%emt 0:00:00]} 8. Be2 {[%emt 0:04:25]} Nbd7 {[%emt 0:00:00]} 9. Nf3 {[%emt 0:01:48]} Re8 {[%emt 0:00:00]} 10. Bg5 {[%emt 0:04:29]} e5 {[%emt 0:00:00]} 11. Qd1 {[%emt 0:03:31]} Qa5 {[%emt 0:00:00]} 12. O-O {[%emt 0:06:35]} Bxc3 {[%emt 0:00:00]} 13. bxc3 {[%emt 0:00:06]} Qxc3 {[%emt 0:00:00]} 14. Bb5 {[%emt 0:01:41]} Qc5 {[%emt 0:00:00]} 15. Rb1 {[%emt 0:09:10]} a6 {[%emt 0:00:00]} 16. Ba4 {[%emt 0:00:08]} b5 {[%emt 0:00:00]} 17. Bb3 {[%emt 0:00:06]} Bb7 {[%emt 0:00:00]} 18. h3 {[%emt 0:03:05]} Ne4 {[%emt 0:00:00]} 19. Qe1 {[%emt 0:02:47]} h6 {[%emt 0:00:00]} 20. Bh4 {[%emt 0:00:14]} Nc3 {[%emt 0:00:00]} 21. Rc1 {[%emt 0:00:24]} a5 {[%emt 0:00:00]} 22. Bxd5 {[%emt 0:08:35]} Bxd5 {[%emt 0:00:00]} 23. Qd2 {[%emt 0:02:35]} Bxf3 {[%emt 0:00:00]} 24. gxf3 {[%emt 0:00:27]} Qc4 {[%emt 0:00:00]} 25. Kh2 {[%emt 0:03:17]} Nxa2 {[%emt 0:00:00]} 26. Ra1 {[%emt 0:00:50]} Qxh4 {[%emt 0:00:00]} 27. Qxd7 {[%emt 0:00:24]} Nc3 {[%emt 0:00:00]} 28. Qd2 {[%emt 0:02:13]} b4 {[%emt 0:00:00]} 29. Rg1 {[%emt 0:00:58]} Rad8 {[%emt 0:00:00]} 30. Qe1 {[%emt 0:00:21]} a4 {[%emt 0:00:00]} 31. Rg4 {[%emt 0:00:55]} Qe7 {[%emt 0:00:00]} 32. Qg1 {[%emt 0:00:45]} f6 {[%emt 0:00:00]} 33. Qg2 {[%emt 0:00:37]} Rd1 {[%emt 0:00:00]} 34. Rxd1 {[%emt 0:00:48]} Nxd1 {[%emt 0:00:00]} 35. Qf1 {[%emt 0:00:51]} Rd8 {[%emt 0:00:00]} 0-1

[Event "Lueneburg Open-A 2019"]
[Site "Lueneburg"]
[Date "2019.08.04"]
[Round "2.26"]
[White "Chennaoui, Yasin"]
[Black "Indinger, Alexander"]
[Result "1-0"]
[ECO "A13"]
[WhiteElo "2092"]
[BlackElo "1764"]
[Annotator "NA"]
[PlyCount "51"]
[EventDate "2019.08.03"]
[EventType "swiss"]
[EventCountry "GER"]
[SourceTitle "playchess.com"]
[Source "ChessBase"]
[SourceQuality "1"]
[TimeControl "40/5400+30:1800+30"]

1. c4 {[%emt 0:00:00]} e6 {[%emt 0:00:00]} 2. g3 {[%emt 0:00:00]} d5 {[%emt 0:00:00]} 3. Bg2 {[%emt 0:00:00]} Nf6 {[%emt 0:00:01]} 4. Nf3 {[%emt 0:00:00]} dxc4 {[%emt 0:00:19]} 5. Qa4+ {[%emt 0:02:18]} Bd7 {[%emt 0:00:06]} 6. Qxc4 {[%emt 0:00:05]} c5 {[%emt 0:00:05]} 7. O-O {[%emt 0:01:59]} Bc6 {[%emt 0:01:58]} 8. d3 {[%emt 0:01:39]} Nbd7 {[%emt 0:01:04]} 9. Nbd2 {[%emt 0:09:10]} Be7 {[%emt 0:01:10]} 10. b3 {[%emt 0:01:33]} O-O {[%emt 0:01:21]} 11. Bb2 {[%emt 0:00:16]} Rc8 {[%emt 0:05:06]} 12. Rac1 {[%emt 0:01:46]} Nd5 {[%emt 0:04:41]} 13. a3 {[%emt 0:03:47]} b6 {[%emt 0:03:25]} 14. e4 {[%emt 0:04:45]} N5f6 {[%emt 0:02:26]} 15. e5 {[%emt 0:07:43]} Nd5 {[%emt 0:06:44]} 16. Qg4 {[%emt 0:00:44]} Re8 {[%emt 0:08:20]} 17. Ne4 {[%emt 0:03:58]} f5 {[%emt 0:02:56]} 18. exf6 {[%emt 0:00:35]} Bxf6 {[%emt 0:00:15]} 19. Nxf6+ {[%emt 0:01:45]} N7xf6 {[%emt 0:01:08]} 20. Qh4 {[%emt 0:04:51]} Qe7 {[%emt 0:10:13]} 21. Rfe1 {[%emt 0:01:45]} Nc7 {[%emt 0:05:19]} 22. d4 {[%emt 0:02:50]} Bd5 {[%emt 0:01:45]} 23. dxc5 {[%emt 0:00:37]} bxc5 {[%emt 0:00:57]} 24. Re5 {[%emt 0:07:39]} Bxb3 {[%emt 0:02:41]} 25. Rexc5 {[%emt 0:01:13]} Bd5 {[%emt 0:10:46]} 26. Be5 {[%emt 0:00:23]} 1-0

[Event "Lueneburg Open-A 2019"]
[Site "Lueneburg"]
[Date "2019.08.04"]
[Round "2.27"]
[White "Kort, Felix"]
[Black "Schulz, Daniel"]
[Result "0-1"]
[ECO "D70"]
[WhiteElo "1791"]
[BlackElo "2071"]
[Annotator "NA"]
[PlyCount "80"]
[EventDate "2019.08.03"]
[EventType "swiss"]
[EventCountry "GER"]
[SourceTitle "playchess.com"]
[Source "ChessBase"]
[SourceQuality "1"]
[TimeControl "40/5400+30:1800+30"]

1. d4 {[%emt 0:00:00]} g6 {[%emt 0:00:00]} 2. c4 {[%emt 0:00:00]} Nf6 {[%emt 0:00:06]} 3. f3 {[%emt 0:00:00]} d5 {[%emt 0:02:50]} 4. cxd5 {[%emt 0:00:06]} Nxd5 {[%emt 0:00:08]} 5. e4 {[%emt 0:00:05]} Nb6 {[%emt 0:00:22]} 6. Nc3 {[%emt 0:01:53]} Bg7 {[%emt 0:01:44]} 7. Be3 {[%emt 0:01:55]} Nc6 {[%emt 0:01:21]} 8. Bb5 {[%emt 0:03:30]} O-O {[%emt 0:00:58]} 9. Nge2 {[%emt 0:08:26]} Qd6 {[%emt 0:11:52]} 10. O-O {[%emt 0:19:01]} Rd8 {[%emt 0:06:00]} 11. Bxc6 {[%emt 0:13:34]} bxc6 {[%emt 0:02:52]} 12. Qd3 {[%emt 0:05:56]} a5 {[%emt 0:08:45]} 13. Rfd1 {[%emt 0:03:03]} Ba6 {[%emt 0:00:59]} 14. Qc2 {[%emt 0:00:39]} Rab8 {[%emt 0:02:28]} 15. b3 {[%emt 0:04:00]} Qb4 {[%emt 0:06:23]} 16. a3 {[%emt 0:18:39]} Qd6 {[%emt 0:00:28]} 17. a4 {[%emt 0:02:53]} Nd7 {[%emt 0:09:28]} 18. Bf4 {[%emt 0:02:26]} e5 {[%emt 0:01:19]} 19. dxe5 {[%emt 0:01:34]} Qc5+ {[%emt 0:01:04]} 20. Nd4 {[%emt 0:04:51]} Nxe5 {[%emt 0:02:27]} 21. Be3 {[%emt 0:02:41]} Nxf3+ {[%emt 0:03:05]} 22. gxf3 {[%emt 0:00:53]} Bxd4 {[%emt 0:04:41]} 23. Bxd4 {[%emt 0:00:07]} Rxd4 {[%emt 0:00:12]} 24. Rxd4 {[%emt 0:00:45]} Qxd4+ {[%emt 0:00:09]} 25. Kg2 {[%emt 0:00:24]} Bd3 {[%emt 0:05:38]} 26. Qb2 {[%emt 0:00:51]} Bc4 {[%emt 0:03:46]} 27. Rd1 {[%emt 0:02:55]} Qf6 {[%emt 0:01:16]} 28. Qd2 {[%emt 0:00:52]} Rxb3 {[%emt 0:04:10]} 29. Rc1 {[%emt 0:01:04]} Be6 {[%emt 0:03:31]} 30. Qe3 {[%emt 0:01:02]} Rb2+ {[%emt 0:03:01]} 31. Ne2 {[%emt 0:00:43]} Rxe2+ {[%emt 0:00:58]} 32. Qxe2 {[%emt 0:00:06]} Qg5+ {[%emt 0:00:13]} 33. Kf2 {[%emt 0:00:01]} Qxc1 {[%emt 0:00:19]} 34. Qd3 {[%emt 0:00:19]} Qb2+ {[%emt 0:00:40]} 35. Kg3 {[%emt 0:00:23]} Qe5+ {[%emt 0:00:41]} 36. f4 {[%emt 0:00:11]} Qd6 {[%emt 0:01:07]} 37. Qc3 {[%emt 0:00:28]} g5 {[%emt 0:00:37]} 38. Qxa5 {[%emt 0:00:58]} Qxf4+ {[%emt 0:00:15]} 39. Kg2 {[%emt 0:00:07]} Qxe4+ {[%emt 0:00:08]} 40. Kf2 {[%emt 0:00:12]} Qf5+ {[%emt 0:13:59]} 0-1

[Event "Lueneburg Open-A 2019"]
[Site "Lueneburg"]
[Date "2019.08.04"]
[Round "2.28"]
[White "Koellner, Christof"]
[Black "Kasipour Azbari, Seyed Arvin"]
[Result "1-0"]
[ECO "D00"]
[WhiteElo "2091"]
[BlackElo "1765"]
[Annotator "NA"]
[PlyCount "67"]
[EventDate "2019.08.03"]
[EventType "swiss"]
[EventCountry "GER"]
[SourceTitle "playchess.com"]
[Source "ChessBase"]
[SourceQuality "1"]
[TimeControl "40/5400+30:1800+30"]

1. d4 {[%emt 0:00:00]} Nf6 {[%emt 0:00:00]} 2. Bg5 {[%emt 0:00:05]} d5 {[%emt 0:00:54]} 3. e3 {[%emt 0:00:34]} Bf5 {[%emt 0:01:37]} 4. Bxf6 {[%emt 0:00:38]} exf6 {[%emt 0:00:13]} 5. Nf3 {[%emt 0:05:35]} Bd6 {[%emt 0:02:25]} 6. c4 {[%emt 0:02:30]} c6 {[%emt 0:01:46]} 7. Nc3 {[%emt 0:06:27]} Be6 {[%emt 0:04:52]} 8. c5 {[%emt 0:15:05]} Bc7 {[%emt 0:00:20]} 9. b4 {[%emt 0:00:48]} O-O {[%emt 0:04:08]} 10. Qc2 {[%emt 0:00:20]} f5 {[%emt 0:03:32]} 11. Bd3 {[%emt 0:00:47]} g6 {[%emt 0:00:35]} 12. g3 {[%emt 0:00:47]} Nd7 {[%emt 0:02:24]} 13. O-O {[%emt 0:00:08]} Nf6 {[%emt 0:03:32]} 14. Rfb1 {[%emt 0:01:22]} Ne4 {[%emt 0:02:36]} 15. b5 {[%emt 0:00:31]} Ng5 {[%emt 0:02:26]} 16. Be2 {[%emt 0:06:59]} Nxf3+ {[%emt 0:01:59]} 17. Bxf3 {[%emt 0:00:02]} f4 {[%emt 0:01:43]} 18. Re1 {[%emt 0:05:15]} fxg3 {[%emt 0:04:02]} 19. hxg3 {[%emt 0:00:33]} f5 {[%emt 0:01:11]} 20. Kg2 {[%emt 0:02:11]} Qg5 {[%emt 0:03:18]} 21. bxc6 {[%emt 0:01:32]} bxc6 {[%emt 0:01:17]} 22. Ne2 {[%emt 0:00:34]} h5 {[%emt 0:09:46]} 23. Qa4 {[%emt 0:11:05]} f4 {[%emt 0:21:35]} 24. Qxc6 {[%emt 0:07:54]} Qf5 {[%emt 0:07:20]} 25. Nxf4 {[%emt 0:01:47]} Bxf4 {[%emt 0:01:00]} 26. exf4 {[%emt 0:00:19]} Rae8 {[%emt 0:04:28]} 27. Re5 {[%emt 0:02:31]} Qh3+ {[%emt 0:02:12]} 28. Kg1 {[%emt 0:00:06]} h4 {[%emt 0:01:57]} 29. Rg5 {[%emt 0:06:24]} hxg3 {[%emt 0:02:47]} 30. fxg3 {[%emt 0:01:31]} Kf7 {[%emt 0:04:04]} 31. Bg2 {[%emt 0:00:36]} Qh8 {[%emt 0:00:51]} 32. Re5 {[%emt 0:01:36]} Qf6 {[%emt 0:01:06]} 33. Rae1 {[%emt 0:01:43]} Rh8 {[%emt 0:00:47]} 34. Bxd5 {[%emt 0:02:16]} 1-0

[Event "Lueneburg Open-A 2019"]
[Site "Lueneburg"]
[Date "2019.08.04"]
[Round "2.29"]
[White "von Estorff, Jacob"]
[Black "Kiesel, Lara"]
[Result "1-0"]
[ECO "B33"]
[WhiteElo "2055"]
[BlackElo "1571"]
[Annotator "NA"]
[PlyCount "83"]
[EventDate "2019.08.03"]
[EventType "swiss"]
[EventCountry "GER"]
[SourceTitle "playchess.com"]
[Source "ChessBase"]
[SourceQuality "1"]
[TimeControl "40/5400+30:1800+30"]

1. e4 {[%emt 0:00:08]} c5 {[%emt 0:00:00]} 2. Nf3 {[%emt 0:00:06]} Nc6 {[%emt 0:00:00]} 3. d4 {[%emt 0:00:08]} cxd4 {[%emt 0:00:00]} 4. Nxd4 {[%emt 0:00:07]} Nf6 {[%emt 0:00:00]} 5. Nc3 {[%emt 0:01:21]} e5 {[%emt 0:00:00]} 6. Ndb5 {[%emt 0:01:11]} d6 {[%emt 0:00:00]} 7. Bg5 {[%emt 0:00:49]} a6 {[%emt 0:00:00]} 8. Na3 {[%emt 0:00:10]} b5 {[%emt 0:00:03]} 9. Nd5 {[%emt 0:00:13]} Be7 {[%emt 0:00:08]} 10. Bxf6 {[%emt 0:00:25]} Bxf6 {[%emt 0:00:04]} 11. Be2 {[%emt 0:02:22]} O-O {[%emt 0:01:07]} 12. O-O {[%emt 0:00:22]} Bg5 {[%emt 0:01:43]} 13. c3 {[%emt 0:02:09]} f5 {[%emt 0:04:55]} 14. exf5 {[%emt 0:00:44]} Bxf5 {[%emt 0:01:08]} 15. Nc2 {[%emt 0:01:19]} Rf7 {[%emt 0:16:30]} 16. Nce3 {[%emt 0:00:50]} Bxe3 {[%emt 0:02:04]} 17. Nxe3 {[%emt 0:00:25]} Be6 {[%emt 0:03:08]} 18. a4 {[%emt 0:01:43]} Rb8 {[%emt 0:16:45]} 19. axb5 {[%emt 0:01:54]} axb5 {[%emt 0:00:35]} 20. Bf3 {[%emt 0:02:16]} Na5 {[%emt 0:02:46]} 21. Bd5 {[%emt 0:02:50]} Bxd5 {[%emt 0:02:45]} 22. Qxd5 {[%emt 0:01:13]} Nc4 {[%emt 0:09:25]} 23. Ra7 {[%emt 0:02:57]} Qf6 {[%emt 0:00:40]} 24. Nxc4 {[%emt 0:01:11]} bxc4 {[%emt 0:00:16]} 25. Qxc4 {[%emt 0:01:11]} Kf8 {[%emt 0:01:59]} 26. Ra6 {[%emt 0:05:04]} g6 {[%emt 0:02:52]} 27. b4 {[%emt 0:00:33]} Rd8 {[%emt 0:03:01]} 28. Qd5 {[%emt 0:01:24]} e4 {[%emt 0:02:21]} 29. c4 {[%emt 0:02:46]} Qf4 {[%emt 0:06:40]} 30. b5 {[%emt 0:01:30]} Rf5 {[%emt 0:01:35]} 31. Qd4 {[%emt 0:01:11]} Rh5 {[%emt 0:05:23]} 32. g3 {[%emt 0:02:37]} Qe5 {[%emt 0:00:40]} 33. Rd1 {[%emt 0:01:23]} Ke7 {[%emt 0:06:10]} 34. Ra7+ {[%emt 0:01:13]} Rd7 {[%emt 0:00:07]} 35. Rxd7+ {[%emt 0:04:07]} Kxd7 {[%emt 0:00:06]} 36. Qa7+ {[%emt 0:01:15]} Ke6 {[%emt 0:00:17]} 37. Qe3 {[%emt 0:01:03]} Rxh2 {[%emt 0:06:44]} 38. Kxh2 {[%emt 0:03:29]} Qh5+ {[%emt 0:00:07]} 39. Kg2 {[%emt 0:00:04]} Qxd1 {[%emt 0:00:08]} 40. Qxe4+ {[%emt 0:00:05]} Kd7 {[%emt 0:04:25]} 41. Qc6+ {[%emt 0:30:52]} Ke7 {[%emt 0:30:41]} 42. b6 {[%emt 0:00:20]} 1-0

[Event "Lueneburg Open-A 2019"]
[Site "Lueneburg"]
[Date "2019.08.04"]
[Round "2.32"]
[White "Darpan, Inani"]
[Black "Comes, Bruno"]
[Result "1/2-1/2"]
[ECO "C42"]
[WhiteElo "1956"]
[BlackElo "2165"]
[Annotator "NA"]
[PlyCount "59"]
[EventDate "2019.08.03"]
[EventType "swiss"]
[EventCountry "GER"]
[SourceTitle "playchess.com"]
[Source "ChessBase"]
[SourceQuality "1"]
[TimeControl "40/5400+30:1800+30"]

1. e4 {[%emt 1:30:30]} e5 {[%emt 1:30:30]} 2. Nf3 {[%emt 0:00:30]} Nf6 {[%emt 0:00:30]} 3. Nxe5 {[%emt 0:00:30]} d6 {[%emt 0:00:30]} 4. Nf3 {[%emt 0:00:30]} Nxe4 {[%emt 0:00:30]} 5. Qe2 {[%emt 0:00:30]} Qe7 {[%emt 0:00:30]} 6. d3 {[%emt 0:00:30]} Nf6 {[%emt 0:00:30]} 7. Bg5 {[%emt 0:00:30]} Be6 {[%emt 0:00:30]} 8. Nc3 {[%emt 0:00:30]} h6 {[%emt 0:00:30]} 9. Bxf6 {[%emt 0:00:30]} Qxf6 {[%emt 0:00:30]} 10. d4 {[%emt 0:00:30]} c6 {[%emt 0:00:30]} 11. d5 {[%emt 0:00:30]} cxd5 {[%emt 0:00:30]} 12. O-O-O {[%emt 0:00:30]} Be7 {[%emt 0:00:30]} 13. Qb5+ {[%emt 0:00:30]} Nd7 {[%emt 0:00:30]} 14. Nxd5 {[%emt 0:00:30]} Bxd5 {[%emt 0:00:30]} 15. Rxd5 {[%emt 0:00:30]} Rd8 {[%emt 0:00:30]} 16. Rf5 {[%emt 0:00:30]} Qg6 {[%emt 0:00:30]} 17. Bd3 {[%emt 0:00:30]} O-O {[%emt 0:00:30]} 18. Rxf7 {[%emt 0:00:30]} Qxg2 {[%emt 0:00:30]} 19. Rg1 {[%emt 0:00:30]} Bg5+ {[%emt 0:00:30]} 20. Kb1 {[%emt 0:00:30]} Qxg1+ {[%emt 0:00:30]} 21. Nxg1 {[%emt 0:00:30]} Kxf7 {[%emt 0:00:30]} 22. Qd5+ {[%emt 0:00:30]} Ke7 {[%emt 0:00:30]} 23. Bf5 {[%emt 0:00:30]} Rf7 {[%emt 0:00:30]} 24. h4 {[%emt 0:00:30]} Bf4 {[%emt 0:00:30]} 25. Nf3 {[%emt 0:00:30]} Be5 {[%emt 0:00:30]} 26. Bxd7 {[%emt 0:00:30]} Rxd7 {[%emt 0:00:30]} 27. Nxe5 {[%emt 0:00:30]} dxe5 {[%emt 0:00:30]} 28. Qxe5+ {[%emt 0:00:30]} Kf8 {[%emt 0:00:30]} 29. Qb8+ {[%emt 0:00:30]} Ke7 {[%emt 0:00:30]} 30. Qe5+ {[%emt 0:00:30]} 1/2-1/2

[Event "Lueneburg Open-A 2019"]
[Site "Lueneburg"]
[Date "2019.08.04"]
[Round "2.33"]
[White "Wozny, Michael"]
[Black "Ische, Helmut"]
[Result "1-0"]
[ECO "A37"]
[WhiteElo "1942"]
[BlackElo "1662"]
[Annotator "NA"]
[PlyCount "111"]
[EventDate "2019.08.03"]
[EventType "swiss"]
[EventCountry "GER"]
[SourceTitle "playchess.com"]
[Source "ChessBase"]
[SourceQuality "1"]
[TimeControl "40/5400+30:1800+30"]

1. c4 {[%emt 0:00:00]} c5 {[%emt 0:00:00]} 2. g3 {[%emt 0:00:07]} Nc6 {[%emt 0:01:39]} 3. Bg2 {[%emt 0:00:14]} g6 {[%emt 0:01:08]} 4. Nf3 {[%emt 0:01:39]} Bg7 {[%emt 0:00:15]} 5. O-O {[%emt 0:00:11]} e6 {[%emt 0:04:49]} 6. Nc3 {[%emt 0:00:31]} Nge7 {[%emt 0:01:28]} 7. d3 {[%emt 0:06:12]} O-O {[%emt 0:02:28]} 8. Bf4 {[%emt 0:06:18]} Bxc3 {[%emt 0:03:19]} 9. bxc3 {[%emt 0:00:04]} d5 {[%emt 0:00:25]} 10. cxd5 {[%emt 0:06:15]} exd5 {[%emt 0:01:32]} 11. Qc2 {[%emt 0:04:01]} d4 {[%emt 0:07:01]} 12. Bd2 {[%emt 0:05:08]} Nf5 {[%emt 0:05:12]} 13. e4 {[%emt 0:02:40]} dxe3 {[%emt 0:01:18]} 14. fxe3 {[%emt 0:00:06]} Re8 {[%emt 0:08:08]} 15. Rae1 {[%emt 0:07:05]} Be6 {[%emt 0:07:31]} 16. e4 {[%emt 0:01:27]} Ng7 {[%emt 0:00:31]} 17. Be3 {[%emt 0:01:35]} b6 {[%emt 0:09:03]} 18. Rf2 {[%emt 0:05:05]} Rc8 {[%emt 0:04:07]} 19. Qb1 {[%emt 0:04:54]} f5 {[%emt 0:03:38]} 20. Ng5 {[%emt 0:01:50]} Ne5 {[%emt 0:06:28]} 21. Rd2 {[%emt 0:03:42]} Bd7 {[%emt 0:06:41]} 22. Nf3 {[%emt 0:05:57]} Ng4 {[%emt 0:03:18]} 23. Bg5 {[%emt 0:00:42]} Qc7 {[%emt 0:01:19]} 24. Bf4 {[%emt 0:01:28]} Qd8 {[%emt 0:01:20]} 25. h3 {[%emt 0:00:50]} Ne6 {[%emt 0:02:44]} 26. hxg4 {[%emt 0:01:07]} Nxf4 {[%emt 0:00:16]} 27. gxf4 {[%emt 0:01:09]} fxg4 {[%emt 0:00:01]} 28. Ne5 {[%emt 0:03:38]} Be6 {[%emt 0:03:56]} 29. Rf1 {[%emt 0:00:43]} Kg7 {[%emt 0:02:15]} 30. Qe1 {[%emt 0:00:20]} h5 {[%emt 0:00:39]} 31. Nxg6 {[%emt 0:01:20]} Kxg6 {[%emt 0:01:33]} 32. f5+ {[%emt 0:00:04]} Bxf5 {[%emt 0:00:08]} 33. exf5+ {[%emt 0:01:14]} Kh6 {[%emt 0:01:55]} 34. Qf2 {[%emt 0:00:47]} Qf6 {[%emt 0:00:24]} 35. Be4 {[%emt 0:01:08]} Rcd8 {[%emt 0:05:49]} 36. Re2 {[%emt 0:00:55]} Re7 {[%emt 0:01:22]} 37. Qf4+ {[%emt 0:00:12]} Kg7 {[%emt 0:00:30]} 38. Rh2 {[%emt 0:02:02]} Rh8 {[%emt 0:00:11]} 39. Rg2 {[%emt 0:00:53]} Kf8 {[%emt 0:01:21]} 40. Bd5 {[%emt 0:01:25]} Rd7 {[%emt 0:02:37]} 41. c4 {[%emt 0:30:29]} Rhh7 {[%emt 0:30:58]} 42. Re1 {[%emt 0:01:20]} Rhe7 {[%emt 0:00:58]} 43. Qb8+ {[%emt 0:02:15]} Kg7 {[%emt 0:00:00]} 44. Qg8+ {[%emt 0:00:00]} Kh6 {[%emt 0:00:00]} 45. Rxe7 {[%emt 0:00:00]} Rxe7 {[%emt 0:00:00]} 46. Qg6+ {[%emt 0:00:00]} Qxg6 {[%emt 0:00:00]} 47. fxg6 {[%emt 0:00:00]} Kxg6 {[%emt 0:00:00]} 48. Be4+ {[%emt 0:00:00]} Kg5 {[%emt 0:00:00]} 49. Rf2 {[%emt 0:00:00]} h4 {[%emt 0:00:00]} 50. Rf5+ {[%emt 0:00:00]} Kh6 {[%emt 0:00:00]} 51. Kg2 {[%emt 0:00:00]} Rg7 {[%emt 0:00:00]} 52. a4 {[%emt 0:00:00]} Rg8 {[%emt 0:00:00]} 53. a5 {[%emt 0:00:00]} Rb8 {[%emt 0:00:00]} 54. a6 {[%emt 0:00:00]} Rg8 {[%emt 0:00:00]} 55. Rf6+ {[%emt 0:00:00]} Kg5 {[%emt 0:00:00]} 56. Rf7 {[%emt 0:00:00]} 1-0